fUSD/lending_fUSD_20260621
["ID","MTS","AMOUNT","RATE_DAILY","PERIOD"]
[425893481,1782029432000,-608.01781743,0.00011317,2]
[425893482,1782029432000,-500.0,0.00011317,2]
[425893483,1782029432000,-500.0,0.00011317,2]
[425893484,1782029432000,-500.0,0.00011317,2]
[425893485,1782029432000,-500.0,0.00011317,2]
[425893487,1782029432000,-500.0,0.00011317,2]
[425893486,1782029432000,-500.0,0.00011317,2]
[425893479,1782029432000,-500.0,0.00011317,2]
[425893509,1782029432000,-500.0,0.00011317,2]
[425893534,1782029432000,-500.0,0.00011317,2]
[425893511,1782029432000,-500.0,0.00011317,2]
[425893528,1782029432000,-500.0,0.00011317,2]
[425893531,1782029432000,-500.0,0.00011317,2]
[425893533,1782029432000,-500.0,0.00011317,2]
[425893532,1782029432000,-650.0,0.00011317,2]
[425893536,1782029432000,-33314.5604,0.00011318,2]
[425893535,1782029432000,-1213.17533199,0.00011318,2]
[425893539,1782029432000,-3589.45247903,0.00011318,2]
[425893540,1782029432000,-135059.61179038,0.00011318,2]
[425893537,1782029432000,-9190.86931191,0.00011318,2]
[425893538,1782029432000,-17850.91242066,0.00011318,2]
[425893542,1782029432000,-5321.56095573,0.00011318,2]
[425893543,1782029432000,-4336.52084792,0.00011318,2]
[425893541,1782029432000,-4003.91029437,0.00011318,2]
[425893544,1782029432000,-1790.70715208,0.00011318,2]
[425893545,1782029432000,-209.29284792,0.00011318,2]
[425893526,1782029432000,-500.0,0.00011317,2]
[425893527,1782029432000,-221.80182521,0.00011317,2]
[425893546,1782029432000,-990.70715208,0.00011318,2]
[425893529,1782029432000,-500.0,0.00011317,2]
[425893510,1782029432000,-500.0,0.00011317,2]
[425893512,1782029432000,-500.0,0.00011317,2]
[425893530,1782029432000,-500.0,0.00011317,2]
[425893514,1782029432000,-500.0,0.00011317,2]
[425893516,1782029432000,-500.0,0.00011317,2]
[425893515,1782029432000,-500.0,0.00011317,2]
[425893518,1782029432000,-250.0,0.00011317,2]
[425893519,1782029432000,-500.0,0.00011317,2]
[425893513,1782029432000,-200.0,0.00011317,2]
[425893520,1782029432000,-500.0,0.00011317,2]
[425893517,1782029432000,-500.0,0.00011317,2]
[425893524,1782029432000,-500.0,0.00011317,2]
[425893525,1782029432000,-200.0,0.00011317,2]
[425893508,1782029432000,-500.0,0.00011317,2]
[425893521,1782029432000,-500.0,0.00011317,2]
[425893522,1782029432000,-500.0,0.00011317,2]
[425893523,1782029432000,-500.0,0.00011317,2]
[425893547,1782029438000,-6983.52344736,0.00011318,2]
[425893552,1782029440000,-2500.0,0.00011318,2]
[425893551,1782029440000,-6548.9002101,0.00011318,2]
[425893550,1782029440000,-4654.84871444,0.00011318,2]
[425893549,1782029440000,-822.02047602,0.00011318,2]
[425893553,1782029440000,-850612.7084443,0.00011318,2]
[425893561,1782029443000,-55977.56195735,0.00011318,2]
[425893583,1782029446000,-36641.92763381,0.00011318,2]
[425893582,1782029446000,-109.43558217,0.00011318,2]
[425893591,1782029562000,-185.73873515,0.00011118,2]
[425893592,1782029615000,-12777.02117747,0.00011178,2]
[425893593,1782029637000,-500.0,0.00010994,2]
[425893594,1782029653000,-500.0,0.00010994,2]
[425893595,1782029669000,-1166.188,0.00010994,2]
[425893596,1782029720000,-155.618,0.00010994,2]
[425893598,1782029774000,-309.85197831,0.00010993,2]
[425893599,1782029827000,-500.0,0.00010993,2]
[425893601,1782029881000,-443.67254179,0.00010893,2]
[425893604,1782029882000,329.28,0.00011025,7]
[425893603,1782029882000,200.0,0.00011025,7]
[425893602,1782029882000,200.0,0.00011025,7]
[425893605,1782029897000,-180.98058998,0.00010893,2]
[425893606,1782030030000,382.45951039,0.0001,2]
[425893608,1782030067000,257.57986726,7.945e-05,2]
[425893607,1782030067000,3.13070474,7.945e-05,2]
[425893609,1782030098000,-200.0,0.00010298,2]
[425893610,1782030101000,158.07,0.00023,120]
[425893611,1782030152000,-332.50414813,0.00010379,2]
[425893612,1782030170000,-332.50414813,0.00010379,2]
[425893613,1782030186000,-424.0,0.00010379,2]
[425893614,1782030202000,-164.10547103,0.00010347,2]
[425893615,1782030254000,-180.98058997,0.00010347,2]
[425893617,1782030257000,273.4946111,0.00010813,7]
[425893616,1782030257000,175.68575417,0.00010298,7]
[425893618,1782030308000,-500.0,0.00010378,2]
[425893619,1782030329000,409.3,0.00010099,2]
[425893620,1782030361000,-500.0,0.00010377,2]
[425893621,1782030389000,1804.64,0.00010061,2]
[425893622,1782030415000,-212.19704808,0.00010376,2]
[425893623,1782030423000,447.88,0.00010047,2]
[425893624,1782030437000,3108.05,0.00010017,2]
[425893625,1782030468000,-150.0,0.00010375,2]
[425893626,1782030470000,200.0,9.86e-05,2]
[425893627,1782030472000,200.0,9.86e-05,2]
[425893629,1782030475000,200.0,0.00010379,7]
[425893628,1782030475000,200.0,9.86e-05,2]
[425893630,1782030476000,200.0,0.00010379,7]
[425893633,1782030529000,156.13,0.0001007,2]
[425893634,1782030555000,-184.22,0.00010114,2]
[425893635,1782030568000,1697.30591788,9.992e-05,2]
[425893636,1782030568000,198.71408212,9.992e-05,2]
[425893642,1782030601000,-500.0,0.00010375,2]
[425893637,1782030601000,-156.13,0.00010322,2]
[425893638,1782030601000,-500.0,0.00010375,2]
[425893639,1782030601000,-211.8692213,0.00010375,2]
[425893640,1782030601000,-500.0,0.00010375,2]
[425893641,1782030601000,-500.0,0.00010375,2]
[425893644,1782030601000,-500.0,0.00010375,2]
[425893648,1782030601000,-500.0,0.00010375,2]
[425893645,1782030601000,-100.19407549,0.00010375,2]
[425893647,1782030601000,-500.0,0.00010375,2]
[425893646,1782030601000,-399.80592451,0.00010375,2]
[425893649,1782030601000,-178.52070833,0.00010375,2]
[425893643,1782030601000,-325.1074208,0.00010375,2]
[425893651,1782030601000,-500.0,0.00010375,2]
[425893650,1782030601000,-407.50156304,0.00010375,2]
[425893652,1782030601000,-190.83397962,0.00010375,2]
[425893654,1782030632000,-150.0,0.00010374,2]
[425893656,1782030632000,-150.24105942,0.00010375,2]
[425893655,1782030632000,-150.0,0.00010374,2]
[425893659,1782030632000,-558.42687001,0.00010375,2]
[425893660,1782030632000,-590.24687982,0.00010375,2]
[425893657,1782030632000,-150.0,0.00010375,2]
[425893663,1782030632000,-558.42687001,0.00010375,2]
[425893658,1782030632000,-367.59289039,0.00010375,2]
[425893661,1782030632000,-558.42687001,0.00010375,2]
[425893662,1782030632000,-558.42687001,0.00010375,2]
[425893666,1782030632000,-558.42687001,0.00010375,2]
[425893664,1782030632000,-558.42687001,0.00010375,2]
[425893665,1782030632000,-558.42687001,0.00010375,2]
[425893669,1782030632000,-558.42687001,0.00010375,2]
[425893668,1782030632000,-558.42687001,0.00010375,2]
[425893671,1782030632000,-558.42687001,0.00010375,2]
[425893670,1782030632000,-558.42687001,0.00010375,2]
[425893667,1782030632000,-558.42687001,0.00010375,2]
[425893734,1782030633000,-558.42687001,0.00010375,2]
[425893726,1782030633000,-558.42687001,0.00010375,2]
[425893738,1782030633000,-558.42687001,0.00010375,2]
[425893728,1782030633000,-558.42687001,0.00010375,2]
[425893737,1782030633000,-558.42687001,0.00010375,2]
[425893736,1782030633000,-558.42687001,0.00010375,2]
[425893739,1782030633000,-558.42687001,0.00010375,2]
[425893733,1782030633000,-558.42687001,0.00010375,2]
[425893740,1782030633000,-558.42687001,0.00010375,2]
[425893731,1782030633000,-558.42687001,0.00010375,2]
[425893735,1782030633000,-558.42687001,0.00010375,2]
[425893741,1782030633000,-1954.10353676,0.00010375,2]
[425893754,1782030633000,-1954.10353676,0.00010375,2]
[425893744,1782030633000,-1954.10353676,0.00010375,2]
[425893745,1782030633000,-1954.10353676,0.00010375,2]
[425893743,1782030633000,-1954.10353676,0.00010375,2]
[425893749,1782030633000,-1954.10353676,0.00010375,2]
[425893748,1782030633000,-1954.10353676,0.00010375,2]
[425893746,1782030633000,-1954.10353676,0.00010375,2]
[425893747,1782030633000,-1954.10353676,0.00010375,2]
[425893751,1782030633000,-1954.10353676,0.00010375,2]
[425893752,1782030633000,-1954.10353676,0.00010375,2]
[425893750,1782030633000,-1954.10353676,0.00010375,2]
[425893753,1782030633000,-1954.10353676,0.00010375,2]
[425893724,1782030633000,-558.42687001,0.00010375,2]
[425893757,1782030633000,-1954.10353676,0.00010375,2]
[425893742,1782030633000,-1954.10353676,0.00010375,2]
[425893718,1782030633000,-558.42687001,0.00010375,2]
[425893689,1782030633000,-558.42687001,0.00010375,2]
[425893720,1782030633000,-558.42687001,0.00010375,2]
[425893764,1782030633000,-1954.10353676,0.00010375,2]
[425893673,1782030633000,-558.42687001,0.00010375,2]
[425893674,1782030633000,-558.42687001,0.00010375,2]
[425893672,1782030633000,-558.42687001,0.00010375,2]
[425893675,1782030633000,-558.42687001,0.00010375,2]
[425893678,1782030633000,-558.42687001,0.00010375,2]
[425893676,1782030633000,-558.42687001,0.00010375,2]
[425893677,1782030633000,-558.42687001,0.00010375,2]
[425893680,1782030633000,-558.42687001,0.00010375,2]
[425893679,1782030633000,-558.42687001,0.00010375,2]
[425893683,1782030633000,-558.42687001,0.00010375,2]
[425893682,1782030633000,-558.42687001,0.00010375,2]
[425893693,1782030633000,-558.42687001,0.00010375,2]
[425893699,1782030633000,-558.42687001,0.00010375,2]
[425893695,1782030633000,-558.42687001,0.00010375,2]
[425893691,1782030633000,-558.42687001,0.00010375,2]
[425893686,1782030633000,-558.42687001,0.00010375,2]
[425893687,1782030633000,-558.42687001,0.00010375,2]
[425893697,1782030633000,-558.42687001,0.00010375,2]
[425893701,1782030633000,-558.42687001,0.00010375,2]
[425893703,1782030633000,-558.42687001,0.00010375,2]
[425893712,1782030633000,-558.42687001,0.00010375,2]
[425893705,1782030633000,-558.42687001,0.00010375,2]
[425893708,1782030633000,-558.42687001,0.00010375,2]
[425893716,1782030633000,-558.42687001,0.00010375,2]
[425893710,1782030633000,-558.42687001,0.00010375,2]
[425893714,1782030633000,-558.42687001,0.00010375,2]
[425893722,1782030633000,-558.42687001,0.00010375,2]
[425893762,1782030633000,-1954.10353676,0.00010375,2]
[425893729,1782030633000,-558.42687001,0.00010375,2]
[425893759,1782030633000,-1954.10353676,0.00010375,2]
[425893791,1782030633000,-500.0,0.00010924,2]
[425893790,1782030633000,-1500000.0,0.00010892,2]
[425893793,1782030633000,-150.0,0.00010944,2]
[425893797,1782030633000,-150.0,0.00010944,2]
[425893792,1782030633000,-276.66846231,0.00010944,2]
[425893795,1782030633000,-200.0,0.00010944,2]
[425893794,1782030633000,-500.0,0.00010944,2]
[425893796,1782030633000,-500.0,0.00010944,2]
[425893803,1782030633000,-500.0,0.00010944,2]
[425893799,1782030633000,-500.0,0.00010944,2]
[425893802,1782030633000,-500.0,0.00010944,2]
[425893798,1782030633000,-500.0,0.00010944,2]
[425893787,1782030633000,-158.66028314,0.00010838,2]
[425893800,1782030633000,-500.0,0.00010944,2]
[425893804,1782030633000,-564.36179297,0.00010944,2]
[425893806,1782030633000,-150.0,0.00010959,2]
[425893805,1782030633000,-166.66,0.00010959,2]
[425893808,1782030633000,-500.0,0.00011014,2]
[425893807,1782030633000,-216.32317309,0.00011004,2]
[425893809,1782030633000,-509.43744033,0.00011014,2]
[425893811,1782030633000,-500.0,0.00011014,2]
[425893810,1782030633000,-500.0,0.00011014,2]
[425893813,1782030633000,-689.32,0.00011063,2]
[425893814,1782030633000,-166.66,0.00011068,2]
[425893812,1782030633000,-304.7528542,0.00011014,2]
[425893815,1782030633000,-156.13,0.00011077,2]
[425893801,1782030633000,-350.68407445,0.00010944,2]
[425893783,1782030633000,-150.0,0.00010689,2]
[425893816,1782030633000,-1723.48835856,0.00011099,2]
[425893785,1782030633000,-832.05766801,0.000108,2]
[425893786,1782030633000,-156.13,0.00010826,2]
[425893756,1782030633000,-1954.10353676,0.00010375,2]
[425893761,1782030633000,-1954.10353676,0.00010375,2]
[425893755,1782030633000,-1954.10353676,0.00010375,2]
[425893758,1782030633000,-1954.10353676,0.00010375,2]
[425893763,1782030633000,-1954.10353676,0.00010375,2]
[425893765,1782030633000,-1954.10353676,0.00010375,2]
[425893769,1782030633000,-1954.10353674,0.00010375,2]
[425893773,1782030633000,-1954.10353673,0.00010375,2]
[425893768,1782030633000,-1954.10353676,0.00010375,2]
[425893766,1782030633000,-1954.10353676,0.00010375,2]
[425893776,1782030633000,-450.91648265,0.00010378,2]
[425893774,1782030633000,-500.0,0.00010376,2]
[425893770,1782030633000,-1954.10353674,0.00010375,2]
[425893760,1782030633000,-1954.10353676,0.00010375,2]
[425893771,1782030633000,-1954.10353674,0.00010375,2]
[425893775,1782030633000,-252.31531025,0.00010378,2]
[425893782,1782030633000,-500.0,0.0001065,2]
[425893778,1782030633000,-2823.57170374,0.00010379,2]
[425893817,1782030633000,-196.96698951,0.00011118,2]
[425893779,1782030633000,-150.0,0.00010482,2]
[425893784,1782030633000,-11418.55293494,0.000108,2]
[425893781,1782030633000,-150.0,0.00010585,2]
[425893780,1782030633000,-156.13,0.00010574,2]
[425893788,1782030633000,-273.11611365,0.00010886,2]
[425893777,1782030633000,-300.74526212,0.00010378,2]
[425893772,1782030633000,-1954.10353674,0.00010375,2]
[425893767,1782030633000,-1954.10353676,0.00010375,2]
[425893789,1782030633000,-4184.0798,0.00010892,2]
[425893854,1782030634000,-4087.44938633,0.00012946,2]
[425893866,1782030634000,-500.0,0.00013698,2]
[425893855,1782030634000,-165.85,0.00013047,2]
[425893864,1782030634000,-500.0,0.00013698,2]
[425893845,1782030634000,-151.0,0.00011418,2]
[425893853,1782030634000,-1723.48835853,0.00012911,2]
[425893849,1782030634000,-217.46905542,0.00012329,2]
[425893851,1782030634000,-433.0,0.00012511,2]
[425893852,1782030634000,-409.3,0.00012623,2]
[425893865,1782030634000,-500.0,0.00013698,2]
[425893856,1782030634000,-275.63799516,0.0001317,2]
[425893858,1782030634000,-500.0,0.00013698,2]
[425893863,1782030634000,-468.11657277,0.00013698,2]
[425893860,1782030634000,-500.0,0.00013698,2]
[425893857,1782030634000,-500.0,0.00013698,2]
[425893859,1782030634000,-500.0,0.00013698,2]
[425893846,1782030634000,-166.66,0.00011507,2]
[425893862,1782030634000,-500.0,0.00013698,2]
[425893870,1782030634000,-500.0,0.00013698,2]
[425893872,1782030634000,-500.0,0.00013698,2]
[425893867,1782030634000,-500.0,0.00013698,2]
[425893873,1782030634000,-500.0,0.00013698,2]
[425893874,1782030634000,-503.0319682,0.00013698,2]
[425893878,1782030634000,-500.0,0.00013698,2]
[425893877,1782030634000,-500.0,0.00013698,2]
[425893861,1782030634000,-636.73599545,0.00013698,2]
[425893850,1782030634000,-217.46905541,0.00012329,2]
[425893840,1782030634000,-250.0,0.00011415,2]
[425893841,1782030634000,-161.4666761,0.00011416,2]
[425893868,1782030634000,-500.0,0.00013698,2]
[425893818,1782030634000,-4087.4493864,0.00011118,2]
[425893820,1782030634000,-2500.0,0.00011118,2]
[425893819,1782030634000,-191.60641667,0.00011118,2]
[425893821,1782030634000,-500.0,0.00011125,2]
[425893824,1782030634000,-165.85,0.00011199,2]
[425893822,1782030634000,-69068.97882253,0.00011178,2]
[425893823,1782030634000,-166.66,0.00011178,2]
[425893826,1782030634000,-243.9159,0.00011217,2]
[425893825,1782030634000,-200.75269711,0.00011208,2]
[425893828,1782030634000,-2000.0,0.00011218,2]
[425893827,1782030634000,-33314.5604,0.00011218,2]
[425893842,1782030634000,-250.0,0.00011416,2]
[425893832,1782030634000,-2222.12104604,0.00011317,2]
[425893837,1782030634000,-255.0,0.00011391,2]
[425893839,1782030634000,-647.22026026,0.00011413,2]
[425893830,1782030634000,-3091.38419936,0.00011317,2]
[425893835,1782030634000,-244.73487244,0.00011373,2]
[425893831,1782030634000,-4727.01837816,0.00011317,2]
[425893838,1782030634000,-166.66,0.00011397,2]
[425893833,1782030634000,-2547.02064656,0.00011317,2]
[425893836,1782030634000,-366.10873254,0.00011373,2]
[425893844,1782030634000,-300.0,0.00011416,2]
[425893847,1782030634000,-4367.61,0.00012055,2]
[425893848,1782030634000,-212.88,0.00012329,2]
[425893843,1782030634000,-500.0,0.00011416,2]
[425893834,1782030634000,-409.3,0.00011361,2]
[425893829,1782030634000,-166.66,0.00011288,2]
[425893871,1782030634000,-500.0,0.00013698,2]
[425893880,1782030634000,-500.0,0.00013698,2]
[425893907,1782030634000,-500.0,0.00013698,2]
[425893909,1782030634000,-500.0,0.00013698,2]
[425893910,1782030634000,-500.0,0.00013698,2]
[425893914,1782030634000,-500.0,0.00013698,2]
[425893911,1782030634000,-500.0,0.00013698,2]
[425893919,1782030634000,-500.0,0.00013698,2]
[425893912,1782030634000,-500.0,0.00013698,2]
[425893913,1782030634000,-500.0,0.00013698,2]
[425893917,1782030634000,-500.0,0.00013698,2]
[425893920,1782030634000,-500.0,0.00013698,2]
[425893915,1782030634000,-500.0,0.00013698,2]
[425893916,1782030634000,-500.0,0.00013698,2]
[425893925,1782030634000,-194.86064,0.0001466,2]
[425893926,1782030634000,-194.86064,0.0001466,2]
[425893924,1782030634000,-194.86063,0.0001466,2]
[425893922,1782030634000,-409.3,0.00013886,2]
[425893923,1782030634000,-250.0,0.00014,2]
[425893929,1782030634000,-4087.44938633,0.00014774,2]
[425893921,1782030634000,-500.0,0.00013698,2]
[425893928,1782030634000,-1500.0,0.00014757,2]
[425893927,1782030634000,-1723.48835853,0.00014743,2]
[425893931,1782030634000,-150.0,0.00015068,2]
[425893930,1782030634000,-152.44,0.000148,2]
[425893932,1782030634000,-409.3,0.00015148,2]
[425893879,1782030634000,-500.0,0.00013698,2]
[425893900,1782030634000,-500.0,0.00013698,2]
[425893901,1782030634000,-500.0,0.00013698,2]
[425893918,1782030634000,-500.0,0.00013698,2]
[425893899,1782030634000,-500.0,0.00013698,2]
[425893876,1782030634000,-500.0,0.00013698,2]
[425893903,1782030634000,-500.0,0.00013698,2]
[425893875,1782030634000,-500.0,0.00013698,2]
[425893869,1782030634000,-500.0,0.00013698,2]
[425893883,1782030634000,-500.0,0.00013698,2]
[425893890,1782030634000,-500.0,0.00013698,2]
[425893893,1782030634000,-500.0,0.00013698,2]
[425893891,1782030634000,-500.0,0.00013698,2]
[425893881,1782030634000,-500.0,0.00013698,2]
[425893886,1782030634000,-500.0,0.00013698,2]
[425893892,1782030634000,-500.0,0.00013698,2]
[425893884,1782030634000,-500.0,0.00013698,2]
[425893885,1782030634000,-326.88287902,0.00013698,2]
[425893882,1782030634000,-500.0,0.00013698,2]
[425893908,1782030634000,-500.0,0.00013698,2]
[425893902,1782030634000,-500.0,0.00013698,2]
[425893888,1782030634000,-500.0,0.00013698,2]
[425893904,1782030634000,-193.55777922,0.00013698,2]
[425893905,1782030634000,-500.0,0.00013698,2]
[425893906,1782030634000,-500.0,0.00013698,2]
[425893894,1782030634000,-500.0,0.00013698,2]
[425893898,1782030634000,-500.0,0.00013698,2]
[425893896,1782030634000,-500.0,0.00013698,2]
[425893897,1782030634000,-500.0,0.00013698,2]
[425893889,1782030634000,-500.0,0.00013698,2]
[425893887,1782030634000,-500.0,0.00013698,2]
[425893895,1782030634000,-500.0,0.00013698,2]
[425893970,1782030635000,-3258.0,0.000183,5]
[425893979,1782030635000,-3132.59,0.00019339,2]
[425893978,1782030635000,-2005.9555727,0.00019141,2]
[425893976,1782030635000,-181.93675902,0.00019,2]
[425893973,1782030635000,-1934.38338736,0.00018593,2]
[425893966,1782030635000,-1165.0,0.00017541,5]
[425893965,1782030635000,-1168.0,0.00017541,5]
[425893961,1782030635000,-167.16,0.00016942,2]
[425893964,1782030635000,-258.0,0.000175,7]
[425893962,1782030635000,-1734.62772924,0.00016949,2]
[425893974,1782030635000,-310.0,0.000187,2]
[425893991,1782030635000,-578.20924308,0.00019689,2]
[425893971,1782030635000,-1723.48835853,0.00018408,2]
[425893990,1782030635000,-179.74288152,0.00019689,2]
[425893981,1782030635000,-9999.99,0.00019339,2]
[425893977,1782030635000,-153.0,0.00019,2]
[425893980,1782030635000,-9999.99,0.00019339,2]
[425893982,1782030635000,-999.99,0.00019339,2]
[425893983,1782030635000,-9999.99,0.00019339,2]
[425893986,1782030635000,-186.193351,0.00019452,2]
[425893984,1782030635000,-299.99,0.00019339,7]
[425893985,1782030635000,-495.3564,0.00019373,2]
[425893987,1782030635000,-181.95696301,0.00019689,2]
[425893992,1782030635000,-500.0,0.00019689,2]
[425893988,1782030635000,-226.55733363,0.00019689,2]
[425893960,1782030635000,-500.0,0.00016734,2]
[425893975,1782030635000,-576.0,0.000187,2]
[425893967,1782030635000,-1050.35,0.00018,2]
[425893937,1782030635000,-1613.0535,0.00015853,2]
[425893959,1782030635000,-4087.44938633,0.00016602,2]
[425893939,1782030635000,-1672.7364795,0.00016401,2]
[425893935,1782030635000,-199.5,0.00015374,2]
[425893933,1782030635000,-184.22,0.0001517,2]
[425893934,1782030635000,-1555.5,0.00015305,2]
[425893942,1782030635000,-276.08561625,0.00016438,2]
[425893943,1782030635000,-500.0,0.00016438,2]
[425893938,1782030635000,-300.0,0.00016,2]
[425893941,1782030635000,-500.0,0.00016438,2]
[425893940,1782030635000,-500.0,0.00016438,2]
[425893936,1782030635000,-689.32,0.00015488,2]
[425893944,1782030635000,-500.0,0.00016438,2]
[425893946,1782030635000,-500.0,0.00016438,2]
[425893948,1782030635000,-500.0,0.00016438,2]
[425893956,1782030635000,-151.0,0.00016438,2]
[425893949,1782030635000,-500.0,0.00016438,2]
[425893947,1782030635000,-500.0,0.00016438,2]
[425893945,1782030635000,-500.0,0.00016438,2]
[425893955,1782030635000,-151.0,0.00016438,2]
[425893950,1782030635000,-500.0,0.00016438,2]
[425893951,1782030635000,-500.0,0.00016438,2]
[425893952,1782030635000,-500.0,0.00016438,2]
[425893954,1782030635000,-499.99999999,0.00016438,2]
[425893953,1782030635000,-500.0,0.00016438,2]
[425893958,1782030635000,-1723.48835853,0.00016576,2]
[425893957,1782030635000,-151.370911,0.00016438,2]
[425893969,1782030635000,-1865.36488656,0.00018045,2]
[425893968,1782030635000,-350.0,0.00018,2]
[425893963,1782030635000,-1798.80895522,0.00017497,2]
[425893989,1782030635000,-156.89976954,0.00019689,2]
[425893972,1782030635000,-4087.44938633,0.0001843,2]
[425893993,1782030635000,-2080.17592889,0.00019689,2]
[425894024,1782030635000,-181.95696301,0.00020129,2]
[425894023,1782030635000,-181.95696301,0.00020074,2]
[425894026,1782030635000,-151.0,0.00020145,2]
[425894031,1782030635000,-151.0,0.00020145,2]
[425894030,1782030635000,-165.459691,0.00020145,2]
[425894033,1782030635000,-181.95696301,0.00020184,2]
[425894032,1782030635000,-151.0,0.00020145,2]
[425894035,1782030635000,-156.89976954,0.00020237,2]
[425894037,1782030635000,-181.95696317,0.00020239,2]
[425894036,1782030635000,-2157.14243826,0.00020237,2]
[425894039,1782030635000,-4087.44938633,0.00020259,2]
[425894034,1782030635000,-226.55733363,0.00020237,2]
[425894038,1782030635000,-1723.48835853,0.00020241,2]
[425894040,1782030635000,-249.0,0.00020374,2]
[425894053,1782030635000,-518.51199711,0.00021799,2]
[425894042,1782030635000,-156.89976954,0.00020785,2]
[425894043,1782030635000,-573.0767962,0.00020785,2]
[425894052,1782030635000,-504.39253638,0.00021788,2]
[425894041,1782030635000,-226.55733363,0.00020785,2]
[425894044,1782030635000,-3647.0,0.00020819,2]
[425894046,1782030635000,-155.0,0.00021,2]
[425894049,1782030635000,-533.93342683,0.00021638,2]
[425894050,1782030635000,-533.93342683,0.0002169,2]
[425894051,1782030635000,-533.93342683,0.00021713,2]
[425894045,1782030635000,-500.0,0.0002095,2]
[425894047,1782030635000,-226.55733363,0.00021333,2]
[425893999,1782030635000,-151.0,0.00019689,2]
[425894027,1782030635000,-151.000008,0.00020145,2]
[425894028,1782030635000,-151.0,0.00020145,2]
[425894048,1782030635000,-156.89976964,0.00021333,2]
[425894021,1782030635000,-181.95696301,0.00020019,2]
[425894022,1782030635000,-177.51,0.00020058,2]
[425893995,1782030635000,-500.0,0.00019689,2]
[425894000,1782030635000,-151.0,0.00019689,2]
[425893998,1782030635000,-151.0,0.00019689,2]
[425893994,1782030635000,-500.0,0.00019689,2]
[425893996,1782030635000,-151.0,0.00019689,2]
[425893997,1782030635000,-151.0,0.00019689,2]
[425894003,1782030635000,-151.0,0.00019689,2]
[425894001,1782030635000,-151.0,0.00019689,2]
[425894002,1782030635000,-151.0,0.00019689,2]
[425894015,1782030635000,-599.0,0.0002,2]
[425894006,1782030635000,-151.0,0.00019689,2]
[425894017,1782030635000,-508.0,0.0002,2]
[425894014,1782030635000,-9999.999999,0.0002,2]
[425894004,1782030635000,-151.0,0.00019689,2]
[425894008,1782030635000,-181.95696301,0.00019744,2]
[425894007,1782030635000,-151.0,0.00019689,2]
[425894020,1782030635000,-832.05766801,0.00020008,2]
[425894029,1782030635000,-151.0,0.00020145,2]
[425894019,1782030635000,-159.0,0.0002,2]
[425894018,1782030635000,-153.0,0.0002,2]
[425894011,1782030635000,-181.95696301,0.00019854,2]
[425894025,1782030635000,-151.0,0.00020145,2]
[425894012,1782030635000,-181.95696301,0.00019909,2]
[425894009,1782030635000,-275.01256262,0.00019744,2]
[425894010,1782030635000,-181.95696301,0.00019799,2]
[425894016,1782030635000,-400.0,0.0002,2]
[425894005,1782030635000,-151.0,0.00019689,2]
[425894013,1782030635000,-181.95696301,0.00019964,2]
[425894090,1782030636000,-226.55733363,0.00024073,2]
[425894095,1782030636000,-492.63888781,0.00024541,30]
[425894092,1782030636000,-492.63888781,0.00024261,14]
[425894091,1782030636000,-492.63888781,0.00024121,14]
[425894081,1782030636000,-226.55733363,0.00023525,2]
[425894082,1782030636000,-492.63888781,0.00023561,7]
[425894085,1782030636000,-3647.0,0.00023819,2]
[425894086,1782030636000,-492.63888781,0.00023841,7]
[425894097,1782030636000,-1000.0,0.00024658,2]
[425894080,1782030636000,-492.63888781,0.00023421,2]
[425894089,1782030636000,-492.63888781,0.00023981,7]
[425894079,1782030636000,-492.63888781,0.00023281,2]